{"text_format":"1","workbook":"xlsx","n_sheets":3,"sheets":["Панель мониторинга","Список оборудования","Данные сводной таблицы"],"not_rendered":{"charts":0,"images":0,"macros":1,"external_links":0,"defined_names":13,"comments":0,"pivot_tables":1},"unopened":[],"bounds":{"document_bytes":16777216,"sheet_cells":100000,"rows_first":2000,"rows_last":500,"rows_between":2000,"halvings":0,"cell_chars":16384,"cell_head_chars":4096},"cells_cut":0,"cells_raw":0,"read":"whole","date_system":"1900"}

{"sheet":"Панель мониторинга","index":0,"n_rows":20,"n_cols":6,"rows_kept":20,"cut":false,"hidden":false,"merged":[]}
[null,"Панель мониторинга"]
[]
[]
[null,null,null,null,null,"Общее количество"]
[null,null,null,null,null,{"$f":"GETPIVOTDATA(\"Количество\",'Данные сводной таблицы'!$B$11)","v":3}]
[]
[null,null,null,null,null,"Общие ежемесячные затраты"]
[null,null,null,null,null,{"$f":"GETPIVOTDATA(\"Общие ежемесячные затраты\",'Данные сводной таблицы'!$B$11)","v":1765.5943035068672}]
[]
[null,null,null,null,null,"Эксплуатационные затраты"]
[null,null,null,null,null,{"$f":"GETPIVOTDATA(\"Эксплуатационные затраты\",'Данные сводной таблицы'!$B$11)","v":605}]
[]
[null,null,null,null,null,"Помесячная амортизация"]
[null,null,null,null,null,{"$f":"GETPIVOTDATA(\"Помесячная амортизация\",'Данные сводной таблицы'!$B$11)","v":659.72222222222217}]
[]
[null,null,null,null,null,"Сумма платежа"]
[null,null,null,null,null,{"$f":"GETPIVOTDATA(\"Сумма платежа\",'Данные сводной таблицы'!$B$11)","v":1160.5943035068672}]
[]
[null,null,null,null,null,"Текущее значение"]
[null,null,null,null,null,{"$f":"GETPIVOTDATA(\"Текущее значение\",'Данные сводной таблицы'!$B$11)","v":37272.374429223739}]

{"sheet":"Список оборудования","index":1,"n_rows":9,"n_cols":20,"rows_kept":9,"cut":false,"hidden":false,"merged":[]}
[null,"Список оборудования"]
[]
[null,null,null,"Выделять, когда остаток ежемесячных платежей меньше: ",20]
[]
[null,"Актив или серийный номер","Описание изделия\n(Дата изготовления и модель)","Расположение","Состояние","Поставщик","Осталось лет до завершения эксплуатации ","Исходное значение","Первый взнос","Дата покупки или взятия в аренду","Срок займа (лет)","Ставка по займу","Ежемесячные эксплуатационные затраты","Ожидаемое значение в конце действия договора","Остаток ежемесячных платежей","Ежемесячная сумма платежа","Общие ежемесячные затраты","Ежегодная амортизация (прямая линия)","Помесячная амортизация (прямая линия)","Текущее значение"]
[null,123,"Изготовление модели 1","Основная ветвь","Хорошо","Локальный",5,30000,5000,"2011-01-15",4,0.1,200,20000,{"$f":"IFERROR(SUMPRODUCT(--(DAY(ROW(OFFSET($A$1,,,DATE(YEAR(ОБОРУДОВАНИЕ[[#This Row],[Дата покупки или взятия в аренду]])+ОБОРУДОВАНИЕ[[#This Row],[Срок займа (лет)]],MONTH(ОБОРУДОВАНИЕ[[#This Row],[Дата покупки или взятия в аренду]])-1,DAY(ОБОРУДОВАНИЕ[[#This Row],[Дата покупки или взятия в аренду]]))-TODAY()))+DATE(YEAR(ОБОРУДОВАНИЕ[[#This Row],[Дата покупки или взятия в аренду]])+ОБОРУДОВАНИЕ[[#This Row],[Срок займа (лет)]],MONTH(ОБОРУДОВАНИЕ[[#This Row],[Дата покупки или взятия в аренду]]),DAY(ОБОРУДОВАНИЕ[[#This Row],[Дата покупки или взятия в аренду]]))-1)=DAY(ОБОРУДОВАНИЕ[[#This Row],[Дата покупки или взятия в аренду]]))),0)","v":25},{"$f":"IFERROR(-(ОБОРУДОВАНИЕ[Исходное значение]>0)*(ОБОРУДОВАНИЕ[Исходное значение]<>ОБОРУДОВАНИЕ[Первый взнос])*PMT(ОБОРУДОВАНИЕ[Ставка по займу]/МесяцевВГоду,ОБОРУДОВАНИЕ[Срок займа (лет)]*МесяцевВГоду,ОБОРУДОВАНИЕ[Исходное значение]-ОБОРУДОВАНИЕ[Первый взнос]),0)","v":634.06458586867973},{"$f":"ОБОРУДОВАНИЕ[[#This Row],[Ежемесячная сумма платежа]]+ОБОРУДОВАНИЕ[Ежемесячные эксплуатационные затраты]","v":834.06458586867973},{"$f":"IFERROR((ОБОРУДОВАНИЕ[Исходное значение]>0)*SLN(ОБОРУДОВАНИЕ[Исходное значение],ОБОРУДОВАНИЕ[Ожидаемое значение в конце действия договора],ОБОРУДОВАНИЕ[Срок займа (лет)]),0)","v":2500},{"$f":"IFERROR(ОБОРУДОВАНИЕ[Ежегодная амортизация (прямая линия)]/МесяцевВГоду,0)","v":208.33333333333334},{"$f":"IFERROR(ОБОРУДОВАНИЕ[Исходное значение]-(ОБОРУДОВАНИЕ[Ежегодная амортизация (прямая линия)]*((TODAY()-ОБОРУДОВАНИЕ[Дата покупки или взятия в аренду])/ДнейВГоду)),0)","v":25280.821917808218}]
[null,234,"Изготовление модели 2","Основная ветвь","Хорошо","Локальный",4,12500,1500,"2011-03-10",3,7.7499999999999999E-2,120,3000,{"$f":"IFERROR(SUMPRODUCT(--(DAY(ROW(OFFSET($A$1,,,DATE(YEAR(ОБОРУДОВАНИЕ[[#This Row],[Дата покупки или взятия в аренду]])+ОБОРУДОВАНИЕ[[#This Row],[Срок займа (лет)]],MONTH(ОБОРУДОВАНИЕ[[#This Row],[Дата покупки или взятия в аренду]])-1,DAY(ОБОРУДОВАНИЕ[[#This Row],[Дата покупки или взятия в аренду]]))-TODAY()))+DATE(YEAR(ОБОРУДОВАНИЕ[[#This Row],[Дата покупки или взятия в аренду]])+ОБОРУДОВАНИЕ[[#This Row],[Срок займа (лет)]],MONTH(ОБОРУДОВАНИЕ[[#This Row],[Дата покупки или взятия в аренду]]),DAY(ОБОРУДОВАНИЕ[[#This Row],[Дата покупки или взятия в аренду]]))-1)=DAY(ОБОРУДОВАНИЕ[[#This Row],[Дата покупки или взятия в аренду]]))),0)","v":15},{"$f":"IFERROR(-(ОБОРУДОВАНИЕ[Исходное значение]>0)*(ОБОРУДОВАНИЕ[Исходное значение]<>ОБОРУДОВАНИЕ[Первый взнос])*PMT(ОБОРУДОВАНИЕ[Ставка по займу]/МесяцевВГоду,ОБОРУДОВАНИЕ[Срок займа (лет)]*МесяцевВГоду,ОБОРУДОВАНИЕ[Исходное значение]-ОБОРУДОВАНИЕ[Первый взнос]),0)","v":343.43280007691891},{"$f":"ОБОРУДОВАНИЕ[[#This Row],[Ежемесячная сумма платежа]]+ОБОРУДОВАНИЕ[Ежемесячные эксплуатационные затраты]","v":463.43280007691891},{"$f":"IFERROR((ОБОРУДОВАНИЕ[Исходное значение]>0)*SLN(ОБОРУДОВАНИЕ[Исходное значение],ОБОРУДОВАНИЕ[Ожидаемое значение в конце действия договора],ОБОРУДОВАНИЕ[Срок займа (лет)]),0)","v":3166.6666666666665},{"$f":"IFERROR(ОБОРУДОВАНИЕ[Ежегодная амортизация (прямая линия)]/МесяцевВГоду,0)","v":263.88888888888886},{"$f":"IFERROR(ОБОРУДОВАНИЕ[Исходное значение]-(ОБОРУДОВАНИЕ[Ежегодная амортизация (прямая линия)]*((TODAY()-ОБОРУДОВАНИЕ[Дата покупки или взятия в аренду])/ДнейВГоду)),0)","v":6990.8675799086759}]
[null,345,"Изготовление модели 2","Ветвь 1","Сносно","Другой",1,10000,2500,"2010-09-15",4,0.08,285,1000,{"$f":"IFERROR(SUMPRODUCT(--(DAY(ROW(OFFSET($A$1,,,DATE(YEAR(ОБОРУДОВАНИЕ[[#This Row],[Дата покупки или взятия в аренду]])+ОБОРУДОВАНИЕ[[#This Row],[Срок займа (лет)]],MONTH(ОБОРУДОВАНИЕ[[#This Row],[Дата покупки или взятия в аренду]])-1,DAY(ОБОРУДОВАНИЕ[[#This Row],[Дата покупки или взятия в аренду]]))-TODAY()))+DATE(YEAR(ОБОРУДОВАНИЕ[[#This Row],[Дата покупки или взятия в аренду]])+ОБОРУДОВАНИЕ[[#This Row],[Срок займа (лет)]],MONTH(ОБОРУДОВАНИЕ[[#This Row],[Дата покупки или взятия в аренду]]),DAY(ОБОРУДОВАНИЕ[[#This Row],[Дата покупки или взятия в аренду]]))-1)=DAY(ОБОРУДОВАНИЕ[[#This Row],[Дата покупки или взятия в аренду]]))),0)","v":21},{"$f":"IFERROR(-(ОБОРУДОВАНИЕ[Исходное значение]>0)*(ОБОРУДОВАНИЕ[Исходное значение]<>ОБОРУДОВАНИЕ[Первый взнос])*PMT(ОБОРУДОВАНИЕ[Ставка по займу]/МесяцевВГоду,ОБОРУДОВАНИЕ[Срок займа (лет)]*МесяцевВГоду,ОБОРУДОВАНИЕ[Исходное значение]-ОБОРУДОВАНИЕ[Первый взнос]),0)","v":183.09691756126861},{"$f":"ОБОРУДОВАНИЕ[[#This Row],[Ежемесячная сумма платежа]]+ОБОРУДОВАНИЕ[Ежемесячные эксплуатационные затраты]","v":468.09691756126858},{"$f":"IFERROR((ОБОРУДОВАНИЕ[Исходное значение]>0)*SLN(ОБОРУДОВАНИЕ[Исходное значение],ОБОРУДОВАНИЕ[Ожидаемое значение в конце действия договора],ОБОРУДОВАНИЕ[Срок займа (лет)]),0)","v":2250},{"$f":"IFERROR(ОБОРУДОВАНИЕ[Ежегодная амортизация (прямая линия)]/МесяцевВГоду,0)","v":187.5},{"$f":"IFERROR(ОБОРУДОВАНИЕ[Исходное значение]-(ОБОРУДОВАНИЕ[Ежегодная амортизация (прямая линия)]*((TODAY()-ОБОРУДОВАНИЕ[Дата покупки или взятия в аренду])/ДнейВГоду)),0)","v":5000.6849315068494}]
[null,"Итог",null,null,null,null,{"$f":"SUBTOTAL(101,ОБОРУДОВАНИЕ[[Осталось лет до завершения эксплуатации ]])","v":3.3333333333333335},{"$f":"SUBTOTAL(109,ОБОРУДОВАНИЕ[Исходное значение])","v":52500},{"$f":"SUBTOTAL(109,ОБОРУДОВАНИЕ[Первый взнос])","v":9000},null,{"$f":"SUBTOTAL(101,ОБОРУДОВАНИЕ[Срок займа (лет)])","v":3.6666666666666665},{"$f":"SUBTOTAL(101,ОБОРУДОВАНИЕ[Ставка по займу])","v":8.5833333333333331E-2},{"$f":"SUBTOTAL(109,ОБОРУДОВАНИЕ[Ежемесячные эксплуатационные затраты])","v":605},{"$f":"SUBTOTAL(109,ОБОРУДОВАНИЕ[Ожидаемое значение в конце действия договора])","v":24000},{"$f":"SUBTOTAL(101,ОБОРУДОВАНИЕ[Остаток ежемесячных платежей])","v":20.333333333333332},{"$f":"SUBTOTAL(109,ОБОРУДОВАНИЕ[Ежемесячная сумма платежа])","v":1160.5943035068672},{"$f":"SUBTOTAL(109,ОБОРУДОВАНИЕ[Общие ежемесячные затраты])","v":1765.5943035068672},{"$f":"SUBTOTAL(101,ОБОРУДОВАНИЕ[Ежегодная амортизация (прямая линия)])","v":2638.8888888888887},{"$f":"SUBTOTAL(101,ОБОРУДОВАНИЕ[Помесячная амортизация (прямая линия)])","v":219.90740740740739},{"$f":"SUBTOTAL(109,ОБОРУДОВАНИЕ[Текущее значение])","v":37272.374429223739}]

{"sheet":"Данные сводной таблицы","index":2,"n_rows":15,"n_cols":8,"rows_kept":15,"cut":false,"hidden":true,"merged":[]}
[null,"Данные сводной таблицы"]
[null,"Этот лист следует оставлять скрытым. Изменение структуры сводной таблицы на этой странице может привести к ошибкам в срезах панели мониторинга."]
[]
[null,"Описание изделия\n(Дата изготовления и модель)","(Все)"]
[null,"Расположение","(Все)"]
[null,"Состояние","(Все)"]
[null,"Поставщик","(Все)"]
[null,"Осталось лет до завершения эксплуатации ","(Все)"]
[null,"Срок займа (лет)","(Все)"]
[]
[null,"Названия строк","Количество","Эксплуатационные затраты","Сумма платежа","Общие ежемесячные затраты","Помесячная амортизация","Текущее значение "]
[null,123,1,200,634.06458586867973,834.06458586867973,208.33333333333334,25280.821917808218]
[null,234,1,120,343.43280007691891,463.43280007691891,263.88888888888886,6990.8675799086759]
[null,345,1,285,183.09691756126861,468.09691756126858,187.5,5000.6849315068494]
[null,"Общий итог",3,605,1160.5943035068672,1765.5943035068672,659.72222222222217,37272.374429223739]